Cogmind - Beta 16.1 @@@ ROGUE MODE // 2026.04.16 @ 14:24:10 Player: EdwardWolfeee Result: Destroyed by 83-1YJ(R) with Subdweller Beam Cannon Performance ------------- Evolutions (0) 0 Regions Visited (3) 600 Robots Destroyed (11) 55 Value Destroyed (214) 214 Prototype IDs (0) 0 Alien Tech Used (0) 0 Bonus (0) 0 TOTAL SCORE: 869 Bonus ------- None Cogmind --------- Core Integrity 0/250 Matter 300/300 Energy 100/100 System Corruption 0% Temperature Cool (9) Movement Core (200) Ox3 Location -10/Subcaves Parts ------- > --- POWER (1) -------- (None) > --- PROPULSION (2) --- (None) > --- UTILITY (2) ------ Small Storage Unit Structural Scanner > --- WEAPON (2) ------- Subdweller Machine Gun > --- INVENTORY (8) ---- Ion Engine Light Ion Engine Aluminum Leg Hacking Suite Assault Rifle Light Assault Rifle Light Assault Rifle Peak State ------------ > --- POWER ------------ Ion Engine > --- PROPULSION ------- Aluminum Leg Aluminum Leg > --- UTILITY ---------- Small Storage Unit Structural Scanner > --- WEAPON ----------- Assault Rifle Mining Laser > --- INVENTORY -------- Ion Engine Light Ion Engine Aluminum Leg Hacking Suite Light Assault Rifle Light Assault Rifle Subdweller Machine Gun [Rating: 8] Favorites ----------- Power Ion Engine Engine Ion Engine Propulsion Aluminum Leg Leg Aluminum Leg Utility Small Storage Unit Device Structural Scanner Storage Small Storage Unit Weapon Light Assault Rifle Ballistic Gun Light Assault Rifle Launcher Grenade Launcher Special Weapon Mining Laser Build | -11 -10 -10 -10 ------- Run | Yrd Mat Min Sub Slots Evolved . | . . . . Power . | . . . . Propulsion . | . . . . Utility . | . . . . Weapon . | . . . . Parts Attached 15 | 6 7 1 1 Power 3 | 1 2 . . Engine 3 | 1 2 . . Core . | . . . . Reactor . | . . . . Propulsion 4 | 2 2 . . Treads . | . . . . Leg 4 | 2 2 . . Wheel . | . . . . Hover . | . . . . Flight . | . . . . Utility 2 | 1 1 . . Device 1 | . 1 . . Storage 1 | 1 . . . Processor . | . . . . Hackware . | . . . . Protection . | . . . . Artifact . | . . . . Weapon 6 | 2 2 1 1 Energy Gun . | . . . . Energy Cannon . | . . . . Ballistic Gun 4 | 2 1 . 1 Ballistic Cannon . | . . . . Launcher 1 | . 1 . . Special Weapon 1 | . . 1 . Impact Weapon . | . . . . Slashing Weapon . | . . . . Piercing Weapon . | . . . . Special Melee Weapon . | . . . . Unidentified Prototypes . | . . . . Parts Lost 6 | . 2 . 4 Power 1 | . . . 1 Propulsion 3 | . 1 . 2 Utility . | . . . . Weapon 2 | . 1 . 1 Highest Loss Streak 4 | . 1 . 4 To Critical Strikes 1 | . 1 . . Average Backups 4 | 1 3 5 6 Power 1 | . 1 2 2 Propulsion . | . . 1 1 Utility . | . . 1 1 Weapon 1 | . 1 1 2 Tool/Special . | . . . . Unused Backups 1 | . . . 1 Power . | . . . . Propulsion . | . . . . Utility 1 | . . . 1 Weapon . | . . . . Tool/Special . | . . . . Average Slot Usage (%) 94 | . 91 100 94 Engine 13 | . 14 14 13 Leg 26 | . 26 28 25 Device 11 | . 8 14 14 Storage 14 | . 14 14 14 Ballistic Gun 17 | . 20 14 14 Launcher 3 | . 6 . . Special Weapon 5 | . . 13 12 Peak Build Rating 8 | 6 7 7 8 Average Rating 6 | 4 6 7 7 On Entrance 5 | . 6 7 7 Avg Prop Armor Cover (%) . | . . . . Naked Turns . | . . . . Heaviest Build 16 | 12 15 14 16 Greatest Support 20 | 20 20 20 20 Greatest Overweight (x) 4 | . 3 . 4 Average Overweight (x) . | . . . . Largest Inventory Capacity 8 | 8 8 8 8 Average Capacity 7 | 7 8 8 8 Most Carried 7 | 3 5 6 7 Average Carried 4 | 1 3 5 6 Final Capacity 8 | 8 8 8 8 Final Carried 7 | 2 5 6 7 Class Distribution -------------------- 100% | Mutant Dominant Class ---------------- Mutant | -10/Materials Mutant | -10/Mines Mutant | -10/Subcaves Resources | -11 -10 -10 -10 ----------- Run | Yrd Mat Min Sub Matter Collected 569 | 198 349 . 22 Remotely . | . . . . Salvage Created 307 | . 307 . . Parts 17 | . 17 . . Haulers Intercepted 1 | . 1 . . Recyclers Shooed . | . . . . Parts Field Recycled . | . . . . Retrieved Matter . | . . . . Parts Self-Destructed . | . . . . Prevented . | . . . . Parts Restored . | . . . . Kills | -11 -10 -10 -10 ------- Run | Yrd Mat Min Sub Combat Hostiles Destroyed 6 | . 6 . . Guns 5 | . 5 . . AOE 1 | . 1 . . Classes Destroyed 6 | . 6 . . Builder 1 | . 1 . . Hauler 1 | . 1 . . Recycler 1 | . 1 . . Operator 2 | . 2 . . Swarmer 2 | . 2 . . Grunt 4 | . 4 . . Best Kill Streak 7 | . 7 . . Combat Bots Only 4 | . 4 . . Max Kills in Single Turn 2 | . 2 . . Gunslinging . | . . . . Exploded 1 | . 1 . . Melee . | . . . . Uniques/NPCs Destroyed . | . . . . Combat | -11 -10 -10 -10 -------- Run | Yrd Mat Min Sub Hostile Shots Fired 65 | . 49 . 16 Missed 16 | . 14 . 2 Hits 49 | . 35 . 14 Projectile 49 | . 35 . 14 AOE 4 | . . . 4 Critical Strikes 3 | . 3 . . Damage Taken 903 | . 420 . 483 Core 255 | . 69 . 186 Absorbed by Shields . | . . . . Core Remaining (%) 100 | 100 . . . Volleys Fired 32 | . 26 1 5 Largest 2 | . 2 1 1 Hottest 100 | . 50 100 100 Shots Fired 56 | . 50 1 5 Gun 46 | . 43 . 3 Cannon . | . . . . Launcher 7 | . 7 . . Special 3 | . . 1 2 Kinetic 46 | . 43 . 3 Thermal 3 | . . 1 2 Explosive 7 | . 7 . . Electromagnetic . | . . . . Robot Hit Streak 7 | . 7 . . Robot Miss Streak 3 | . 3 . 2 Penetration Max . | . . . . Secondary Targets 1 | . 1 . . Max Gunslinging Chain 1 | . 1 . . Shots Hit Robots 26 | . 26 . . Core Hits 20 | . 20 . . Critical Kills . | . . . . Critical Parts Destroyed . | . . . . Critical Strikes . | . . . . Melee Attacks . | . . . . Impact . | . . . . Slashing . | . . . . Piercing . | . . . . Sneak Attacks . | . . . . Combat Hostiles . | . . . . Follow-up Attacks . | . . . . Damage Inflicted 588 | . 588 . . Guns 227 | . 227 . . Cannons . | . . . . Explosions 361 | . 361 . . Melee . | . . . . Ramming . | . . . . Kinetic 227 | . 227 . . Thermal . | . . . . Explosive 361 | . 361 . . Electromagnetic . | . . . . Impact . | . . . . Slashing . | . . . . Piercing . | . . . . Highest Corruption . | . . . . Average Corruption . | . . . . Corruption Purged . | . . . . Corruption Blocked . | . . . . Overload Shots . | . . . . Overflow Damage . | . . . . Projectiles . | . . . . Explosions . | . . . . Melee . | . . . . Knockbacks . | . . . . Impact . | . . . . Kinetic . | . . . . Secondary . | . . . . Self-Inflicted Damage 49 | . 49 . . Shots 3 | . 3 . . Rammed . | . . . . Targets Rammed . | . . . . Kicked . | . . . . Crushed . | . . . . Highest Temperature 38 | . 38 20 . Average Temperature 13 | . 13 10 . Received Heat Transfer 231 | . 177 . 54 Siege Activations . | . . . . Martial Activations . | . . . . Shielding Activations . | . . . . Robots Disrupted . | . . . . Combat Hostiles . | . . . . Robots Corrupted . | . . . . Combat Hostiles . | . . . . Parts Fried . | . . . . Impact Corruptions . | . . . . Robots Melted . | . . . . Combat Hostiles . | . . . . Parts Melted . | . . . . Heat Transferred . | . . . . Parts Sabotaged . | . . . . Parts Stolen . | . . . . Parts Stripped . | . . . . Power Chain Reactions . | . . . . Alert | -11 -10 -10 -10 ------- Run | Yrd Mat Min Sub Maximum Alert Level . | . . . . Low Security (%) 100 | 100 100 100 . Level 1 . | . . . . Level 2 . | . . . . Level 3 . | . . . . Level 4 . | . . . . Level 5 . | . . . . High Security . | . . . . Max Security . | . . . . Peak Influence 134 | . 134 25 . Initial 25 | . . 25 . Average 30 | . 47 4 . Influence Increases 225 | . 225 . . Destroy 0b10 Robot/C 120 | . 120 . . Destroy 0b10 Robot/NC 25 | . 25 . . Destroy Leader 32 | . 32 . . Destroy Structure 48 | . 48 . . Influence Decreases 225 | . 159 66 . Entered New Map 41 | . . 41 . Time Decay 164 | . 139 25 . Lost Part 20 | . 20 . . Squads Dispatched 1 | . 1 . . Investigation . | . . . . Extermination . | . . . . Reinforcement 1 | . 1 . . Assault . | . . . . Garrison . | . . . . Intercept . | . . . . Searches Triggered . | . . . . Construction Impeded . | . . . . Haulers Reinforced . | . . . . Active Scanning Responses . | . . . . Cargo Convoy Interrupts . | . . . . Stealth | -11 -10 -10 -10 --------- Run | Yrd Mat Min Sub Distress Signals . | . . . . Communications Jammed . | . . . . Distress Signals . | . . . . Times Spotted 16 | . 13 . 3 Peak Tracking Total 4 | . 4 . 3 Tactical Retreats . | . . . . Traps | -11 -10 -10 -10 ------- Run | Yrd Mat Min Sub Traps Triggered 4 | . 4 . . Indirectly . | . . . . Trap Hack Attempts . | . . . . Triggered . | . . . . Disarmed . | . . . . Reprogrammed . | . . . . Reused . | . . . . Traps Extracted . | . . . . Installed . | . . . . Triggered . | . . . . Machines | -11 -10 -10 -10 ---------- Run | Yrd Mat Min Sub Machines Disabled . | . . . . Max in Single Turn . | . . . . Machines Repaired . | . . . . Machines Dismantled . | . . . . Machines Sabotaged . | . . . . Overloaded Fab Kills . | . . . . Hacking | -11 -10 -10 -10 --------- Run | Yrd Mat Min Sub Machines Accessed . | . . . . Terminals . | . . . . Fabricators . | . . . . Repair Stations . | . . . . Recycling Units . | . . . . Scanalyzers . | . . . . Garrison Access . | . . . . Total Hacks . | . . . . Successful . | . . . . Failed . | . . . . Catastrophic . | . . . . Database Lockouts . | . . . . Manual . | . . . . Terminals . | . . . . Fabricators . | . . . . Repair Stations . | . . . . Recycling Units . | . . . . Scanalyzers . | . . . . Garrison Access . | . . . . Terminal Hacks . | . . . . Fabricator Hacks . | . . . . Repair Station Hacks . | . . . . Recycling Unit Hacks . | . . . . Scanalyzer . | . . . . Garrison Access Hacks . | . . . . Unauthorized Hacks . | . . . . Terminals . | . . . . Fabricators . | . . . . Repair Stations . | . . . . Recycling Units . | . . . . Scanalyzers . | . . . . Garrison Access . | . . . . Data Cores Recovered 1 | . 1 . . Used . | . . . . Hacking Detections . | . . . . Full Trace Events . | . . . . Feedback Events . | . . . . Feedback Blocked . | . . . . Robot Schematics Acquired . | . . . . Robots Built . | . . . . Authchips . | . . . . Time . | . . . . Total Robot Build Rating . | . . . . Part Schematics Acquired . | . . . . Parts Built . | . . . . Authchips . | . . . . Time . | . . . . Total Part Build Rating . | . . . . Part Studies Acquired . | . . . . Parts Repaired . | . . . . Time . | . . . . Parts Recycled . | . . . . Recycled Matter . | . . . . Retrieved Matter . | . . . . Retrieved Components . | . . . . Parts Scanalyzed . | . . . . Part Schematics Acquired . | . . . . Parts Damaged . | . . . . Bothacking | -11 -10 -10 -10 ------------ Run | Yrd Mat Min Sub Used RIF Installer . | . . . . Robots Hacked . | . . . . Non-combat . | . . . . Combat . | . . . . Robot Hacks Applied . | . . . . Relay Couplers Released . | . . . . Fabnet Peak Effective % . | . . . . Robots Rewired . | . . . . Allies Hacked . | . . . . Hacks Repelled . | . . . . Allies | -11 -10 -10 -10 -------- Run | Yrd Mat Min Sub Total Allies 1 | . . 1 . Largest Group 1 | . . 1 1 Highest-Rated Group 31 | . . 31 31 Highest-Rated Ally 31 | . . 31 31 Total Orders . | . . . . Ally Attacks . | . . . . Total Damage . | . . . . Kills . | . . . . Allies Corrupted . | . . . . Allies Melted . | . . . . Intel | -11 -10 -10 -10 ------- Run | Yrd Mat Min Sub Active Infowar (turns) 726 | . 335 202 189 Structural 726 | . 335 202 189 Robot Analysis Total . | . . . . Derelict Logs Recovered 1 | . . 1 . Drone Launches . | . . . . Drone Recoveries . | . . . . Exploration | -11 -10 -10 -10 ------------- Run | Yrd Mat Min Sub Turns Passed 1020 | 116 513 202 189 Spaces Moved 680 | 56 333 152 139 Core 10 | 5 1 . 4 Treads . | . . . . Legs 670 | 51 332 152 135 Wheels . | . . . . Hover . | . . . . Flight . | . . . . Fastest Speed 50 | 50 120 120 120 Average Speed 121 | 113 122 120 123 Slowest Speed 250 | 120 200 120 250 Overloaded Moves . | . . . . Propulsion Burnouts . | . . . . Robots Hopped . | . . . . Potential Cave-ins . | . . . . Cave-ins Triggered . | . . . . Exploration Rate (%) 36 | 3 75 57 9 Regions Visited 3 Branch Regions 2 Pre-discovered Areas . | . . . . Known Exits Taken . | . . . . Unknown Exits Taken 3 | 1 1 1 . Scrap Searched . | . . . . Spaces Dug . | . . . . Terrain Destroyed 51 | . 51 . . Melee . | . . . . Projectile . | . . . . AOE 51 | . 51 . . Terrain Rammed . | . . . . Walls Destroyed . | . . . . Machines Disabled . | . . . . Actions | -11 -10 -10 -10 --------- Run | Yrd Mat Min Sub Total 805 | 106 385 168 146 Wait 65 | 41 10 14 . Move 677 | 55 332 151 139 Hop . | . . . . Pick Up 8 | 4 2 1 1 Fast Attach 14 | 4 10 . . Attach 3 | 2 1 . . Detach . | . . . . Swap 6 | . 4 1 1 Drop . | . . . . Fire 32 | . 26 1 5 Melee . | . . . . Ram . | . . . . Kick . | . . . . Crush . | . . . . Escape Stasis . | . . . . Rewire . | . . . . Trap . | . . . . Miscellaneous . | . . . . Route ------- -11/Scrapyard -10/Materials (discovered 3 exits: [*Mat] / [*Min x2]) -10/Mines -10/Subcaves History --------- Turn | Location | Event 20 | -11/Scrapyard | Discovered new exit (range 16) 117 | -11/Scrapyard | Entered Materials 315 | -10/Materials | Discovered new exit (range 16) 316 | -10/Materials | Build established: Mutant 385 | -10/Materials | Discovered new exit (range 12) 555 | -10/Materials | Discovered new exit (range 7) 630 | -10/Materials | Entered Mines 633 | -10/Mines | Received a Mining Laser from a helpful Derelict 656 | -10/Mines | Learned Materials emergency access door positions 735 | -10/Mines | Assembled infested the area 740 | -10/Mines | Assisted by a Guerilla fighting off Assembled 818 | -10/Mines | Discovered new exit (range 7) 832 | -10/Mines | Entered Subcaves 832 | -10/Subcaves | Accompanied by 1 ally 833 | -10/Subcaves | Shifting Twisted Machinery released Sub. Machine Gun 878 | -10/Subcaves | Shifting Twisted Machinery released Sub. Optics 1006 | -10/Subcaves | Ambushed by Subdweller buried in earth 1008 | -10/Subcaves | Ambushed by Subdweller buried in earth 1009 | -10/Subcaves | Core integrity fell below 50% 1014 | -10/Subcaves | Core integrity fell below 20% 1021 | -10/Subcaves | Destroyed by 83-1YJ(R) with Subdweller Beam Cannon Last Messages --------------- EXIT=FOUND T-07 Excavator is excavating. LOCATION=UNKNOWN AMBIENT_HEAT=-10 GOAL=ESCAPE Sub. Machine Gun falls loose from the Twisted Machinery. Acquired Sub. Machine Gun. Sub. Optics falls loose from the Twisted Machinery. PF-56E(g): "You look like you can take it from here!" PF-56E(g) slips back into the shadows. Acquired 5 matter. Acquired 15 matter. 1Q-BM7(R): "SUBSUUUUUB!" Mining Laser destroyed. [Achievement: Do Not Disturb] 83-1YJ(R): "ARGHSUB!" Aluminum Leg destroyed. HL-5MT(R): "HIDIE!" Acquired 2 matter. Ion Engine destroyed. Map ----- +----------------------------------------------------+ | ????????????????????????????????????????????????? | | ????????????????????????????????????????????????? | | ????????????????????????????????????????????????? | | ????????????????????????????????????????????????? | | ????????????????????????????????????????????????? | | ????????????????????????????????????????????????? | | ????????????????????????????????????????????????? | | ????????????????????????????????????????????????? | | ????????????????????????????????????????????????? | | ????????????????????????????????????????????????? | | ????????????????????????????????????????????????? | | ????????????????????????????????????????????????? | | ????????????????????????????????????????????????? | | ???????????????????????????????? ?????????????? | | ??????????????????????????????? ##?????????????? | | ?????????????## ?????????????? % ##?????????????? | | ?????????????## ??????????#### ##?????????????? | | ?????????????## ????????? ### %##?????????????? | | ?????????????### ?????? ###?????????????? | | ?????????????#### # ??????? ##??????????????? | | ?????????????##### ####### ##????????????????? | | ?????????????## ####### ###????????????????? | | ?????????????## %% # # # ###????????????????? | | ?????????????## % ##????????????????? | | ?????????????### ##????????????????? | | ?????????????????## # @ ##????????????????? | | ?????????????????### #;;; ###???????????????? | | ??????????????????###; ###???????????????? | | ????????????????##### ###??????????????? | | ???????????????######; R ##??????????????? | | ???????????????###"$$$ ###??????????????? | | ???????????????##%& <; ###??????????????? | | ???????????????## ###; ###??????????????? | | ???????????????##" ; R ##??????????????? | | ??????????????#####%## ###??????????????? | | ??????????????####" " ###??????????????? | | ??????????????## ;###???????????????? | | ??????????????## ####???????????????? | | ??????????????## ###????????????????? | | ??????????????###### ##?????????????????? | | ??????????????####### ##?????????????????? | | ??????????????????### ##?????????????????? | | ??????????????????### ###?????????????????? | | ??????????????????## ####?????????????????? | | ??????????????????## ###??????????????????? | | ??????????????????## ######?#########??????? | | ???????????????###### ##################??#### | | ??????????????####### ### ##### ### ######### | | ?????????????#### ### ###### | | ?????????????### ## | +----------------------------------------------------+ Best States ------------- Heat Dissipation 25 Energy Generation 10 Energy Capacity 250 Matter Stores 300 Matter Capacity 300 Sight Range 16 Terrain Scan Density 10 Evasion (%) 55 Item Schematics ----------------- None Robot Schematics ------------------ None Fabricated ------------ Nothing Repaired ---------- Nothing Studied --------- None Alien Tech Used ----------------- None Achievements -------------- Do Not Disturb Challenges ------------ None Game ------ Seed DisruptionCargoMegashotty Manual? 0 Play Time 00:19:06 Cumulative 6.7 hours Start 2026.04.16 @ 13:03:45 End 2026.04.16 @ 14:24:10 Sessions 1 Manual Loads 0 Difficulty Rogue Special Mode None Game No. 13 Rogue 13 Adventurer 0 Explorer 0 Win Type - Total 0 Types 0/0/0/0/0/0/0/0/0/0 Lore% 0 Gallery% 8 Achievement% 8 Wizard Run 0 Options --------- Layout 0 ASCII 0 Keyboard 0 Movement Mouse Keybinds 0 Fullscreen 2 Font 24/Smallcaps Map View 113x50 Zoom Use 14% Tactical HUD 0 Map Filters NONE Filters NONE Steam 1 RUN: cfd90c18-743d-4e6e-8f78-445023b1b781